bitfinex/quotes_SOLUSD_20250228
["timestamp","ask_amount","ask_price","bid_price","bid_amount"]
[1740771904279,6.7934,147.2,147.19,2.063]
[1740771904586,6.7934,147.2,147.19,0.063]
[1740771905289,6.93556157,147.2,147.19,0.0001]
[1740771905676,8.93556157,147.2,147.19,0.0001]
[1740771906580,6.93556157,147.2,147.19,0.0001]
[1740771908280,8.93556157,147.2,147.19,0.0001]
[1740771910178,6.93556157,147.2,147.19,0.0001]
[1740771910379,13.53556157,147.2,147.19,0.0001]
[1740771910910,6.7934,147.2,147.19,0.0001]
[1740771911481,6.6,147.21,147.2,2.0]
[1740771911695,6.6,147.21,147.19,0.0001]
[1740771911696,6.6,147.21,147.19,2.0001]
[1740771911906,0.14216157,147.2,147.19,0.0001]
[1740771912980,0.14216157,147.18,147.14,2.0]
[1740771913197,81.79792401,147.18,147.13,2.063]
[1740771913386,6.7948,147.17,147.14,2.0]
[1740771913793,6.7948,147.17,147.13,2.063]
[1740771913987,7.69792401,147.16,147.13,0.063]
[1740771914198,82.7,147.15,147.09,2.063]
[1740771914409,83.79792401,147.14,147.09,2.063]
[1740771914903,83.79792401,147.14,147.09,0.063]
[1740771915084,83.79792401,147.14,147.09,2.063]
[1740771915290,81.79792401,147.14,147.1,2.0]
[1740771915489,0.14216157,147.13,147.1,2.0]
[1740771915802,0.14216157,147.13,147.11,2.0]
[1740771916383,0.14216157,147.14,147.12,2.0]
[1740771917291,114.5,147.15,147.14,2.0]
[1740771917789,6.6,147.19,147.18,2.0]
[1740771917989,13.3941,147.19,147.16,2.0]
[1740771918198,0.14216157,147.18,147.16,2.0]
[1740771918397,0.14216157,147.16,147.13,2.0]
[1740771919102,0.14216157,147.16,147.14,2.0]
[1740771919308,0.14216157,147.16,147.15,2.0]
[1740771919801,6.93746157,147.16,147.15,2.0]
[1740771920299,0.14216157,147.16,147.15,2.0]
[1740771920501,87.63696157,147.17,147.16,2.0]
[1740771920704,0.14216157,147.16,147.14,2.0]
[1740771921009,0.14216157,147.16,147.13,2.0]
[1740771921497,0.14216157,147.16,147.1,46.5854868]
[1740771921498,81.79792401,147.16,147.12,2.0]
[1740771921688,81.79792401,147.16,147.1,2.0]
[1740771921689,0.14216157,147.14,147.1,2.0]
[1740771921884,88.39792401,147.14,147.1,2.0]
[1740771922203,88.39792401,147.14,147.11,0.063]
[1740771922598,0.14216157,147.12,147.11,0.063]
[1740771922805,1.09792401,147.12,147.11,0.063]
[1740771923308,0.14216157,147.12,147.11,0.063]
[1740771923492,6.6,147.14,147.11,2.063]
[1740771923696,6.93886157,147.13,147.12,2.0]
[1740771925009,6.93886157,147.13,147.11,2.063]
[1740771925223,6.93886157,147.13,147.12,2.0]
[1740771926385,6.93786157,147.15,147.14,2.0]
[1740771927386,6.93786157,147.15,147.12,2.0]
[1740771927990,1.09792401,147.14,147.11,2.063]
[1740771928192,0.14216157,147.14,147.11,2.063]
[1740771928596,0.14216157,147.14,147.13,2.0]
[1740771929096,1.09792401,147.14,147.11,0.063]
[1740771929700,26.93926157,147.12,147.11,0.063]
[1740771930609,26.93926157,147.12,147.09,0.063]
[1740771930610,0.14216157,147.11,147.09,0.063]
[1740771930819,1.09792401,147.1,147.09,0.063]
[1740771931805,7.89592401,147.1,147.09,0.063]
[1740771934615,0.14216157,147.09,147.06,2.063]
[1740771934816,20.0,147.07,147.06,0.063]
[1740771935300,20.14216157,147.07,147.06,0.063]
[1740771936408,0.14216157,147.07,147.06,0.063]
[1740771936798,6.94156157,147.07,147.06,0.063]
[1740771937712,6.94156157,147.07,147.06,0.0001]
[1740771942124,6.7994,147.07,147.06,2.0001]
[1740771942298,0.14216157,147.07,147.06,2.0001]
[1740771942829,121.3791,147.08,147.07,2.0]
[1740771942830,114.58,147.08,147.07,2.0]
[1740771943120,0.14216157,147.07,147.06,2.0001]
[1740771943717,121.379,147.08,147.06,2.0001]
[1740771944106,0.14216157,147.07,147.06,2.0001]
[1740771946228,114.58,147.08,147.07,2.0]
[1740771946426,6.7977,147.11,147.09,2.0]
[1740771946628,0.03,147.12,147.11,2.0]
[1740771946925,0.17216157,147.12,147.11,2.0]
[1740771947629,0.03,147.12,147.11,2.0]
[1740771948008,0.17216157,147.12,147.11,2.0]
[1740771948437,0.17216157,147.12,147.09,2.0]
[1740771949408,0.17216157,147.12,147.1,2.0]
[1740771950039,6.7976,147.11,147.09,2.0]
[1740771950327,0.14216157,147.1,147.08,2.0]
[1740771950831,1.09792401,147.1,147.07,2.0]
[1740771951046,1.09792401,147.1,147.06,48.5855868]
[1740771951208,0.14216157,147.08,147.06,2.0001]
[1740771951409,20.14216157,147.07,147.06,0.0001]
[1740771951834,20.14216157,147.07,147.06,2.0001]
[1740771952013,20.14216157,147.07,147.06,0.0001]
[1740771952211,26.94156157,147.07,147.06,0.0001]
[1740771953909,6.94156157,147.07,147.06,0.0001]
[1740771954432,26.94156157,147.07,147.06,0.0001]
[1740771955212,100.84216157,147.06,147.04,0.04]
[1740771955432,20.14216157,147.03,147.0,0.063]
[1740771955616,6.74216157,147.03,147.0,0.063]
[1740771955815,7.69792401,147.03,147.0,0.063]
[1740771956817,20.14216157,147.01,147.0,0.0001]
[1740771957051,21.09792401,147.01,147.0,0.0001]
[1740771957217,1.09792401,147.01,147.0,0.0001]
[1740771958108,0.14216157,147.01,147.0,0.0001]
[1740771958330,0.14216157,147.01,147.0,2.0001]
[1740771959220,6.94436157,147.01,147.0,0.0001]
[1740771960517,0.14216157,147.01,147.0,2.0001]
[1740771960812,6.6,147.03,147.02,2.0]
[1740771961020,114.58,147.05,147.04,2.0]
[1740771961219,87.3,147.09,147.06,2.0]
[1740771961418,6.6,147.09,147.06,2.0]
[1740771962015,20.0,147.1,147.06,2.0]
[1740771962217,0.03,147.12,147.06,48.5854868]
[1740771962652,80.7,147.11,147.06,2.0]
[1740771962944,0.03,147.12,147.06,55.3853868]
[1740771963149,0.03,147.12,147.06,193.3853868]
[1740771963455,0.03,147.12,147.11,2.0]
[1740771965452,0.03,147.12,147.11,48.5854868]
[1740771965642,0.03,147.16,147.11,194.5560868]
[1740771965940,0.03,147.16,147.15,2.0]
[1740771969047,0.03,147.16,147.15,193.3811868]
[1740771969259,0.063,147.22,147.21,2.0]
[1740771970849,0.063,147.22,147.21,48.5854868]
[1740771972745,0.063,147.22,147.21,50.0116446]
[1740771972950,0.063,147.22,147.21,194.8046446]
[1740771973249,0.03,147.24,147.23,22.0]
[1740771973423,0.03,147.24,147.23,23.4256857]
[1740771974544,0.03,147.24,147.23,22.0]
[1740771975456,0.03,147.24,147.23,2.0]
[1740771982649,0.03,147.24,147.23,186.5854868]
[1740771984989,0.03,147.24,147.23,48.5854868]
[1740771986775,0.03,147.26,147.23,48.5854868]
[1740771986966,0.03,147.26,147.25,2.0]
[1740771987150,0.03,147.26,147.24,2.0]
[1740771987571,0.17216157,147.26,147.24,2.0]
[1740771987873,0.17216157,147.26,147.23,2.0]
[1740771988450,6.58,147.25,147.22,2.063]
[1740771988979,0.14216157,147.24,147.23,2.0]
[1740771989585,6.93376157,147.24,147.23,2.0]
[1740771990162,6.93376157,147.24,147.22,2.063]
[1740771990748,6.93376157,147.24,147.22,0.063]
[1740771990953,1.09792401,147.23,147.22,0.0001]
[1740771991173,0.14216157,147.23,147.22,0.0001]
[1740771991584,87.63416157,147.23,147.22,0.0001]
[1740771992558,10.56796157,147.23,147.22,0.0001]
[1740771993379,8.56796157,147.23,147.22,0.0001]
[1740771993783,8.4258,147.23,147.22,0.0001]
[1740771993960,6.93416157,147.23,147.22,0.0001]
[1740771994162,6.93416157,147.23,147.22,2.0001]
[1740771995766,20.14216157,147.23,147.22,2.0001]
[1740771995980,26.93416157,147.23,147.22,0.0001]
[1740771996886,6.93416157,147.23,147.22,2.0001]
[1740771997098,0.03,147.24,147.23,2.0]
[1740771998163,0.03,147.24,147.22,0.0001]
[1740771998368,0.03,147.24,147.23,2.0]
[1740772002784,0.03,147.24,147.22,0.0001]
[1740772003184,0.03,147.24,147.23,2.0]
[1740772004771,0.03,147.24,147.22,0.0001]
[1740772005274,6.72216157,147.23,147.22,0.0001]
[1740772006175,6.72216157,147.23,147.22,2.0001]
[1740772006981,13.51416157,147.23,147.22,2.0001]
[1740772007390,13.51416157,147.23,147.22,0.0001]
[1740772007589,95.16992401,147.23,147.22,0.0001]
[1740772007792,94.21416157,147.23,147.22,0.0001]
[1740772008091,94.21416157,147.23,147.22,2.0001]
[1740772008292,87.28,147.23,147.22,2.0001]
[1740772008519,94.072,147.23,147.22,2.0001]
[1740772009686,87.28,147.23,147.22,2.0001]
[1740772010287,6.58,147.23,147.22,2.0001]
[1740772010500,13.372,147.23,147.22,2.0001]
[1740772011477,0.03,147.24,147.22,2.0001]
[1740772011680,0.03,147.24,147.23,2.0]
[1740772012695,6.8216,147.24,147.23,2.0]
[1740772013198,0.03,147.24,147.23,2.0]
[1740772013792,0.03,147.24,147.22,2.0001]
[1740772014181,0.03,147.24,147.23,2.0]
[1740772014794,0.03,147.24,147.22,2.0001]
[1740772014978,0.03,147.24,147.23,2.0]
[1740772015183,0.03,147.24,147.22,2.0001]
[1740772015379,6.75216157,147.24,147.22,0.0001]
[1740772016902,6.792,147.23,147.22,2.0001]
[1740772018706,6.93416157,147.23,147.22,0.0001]
[1740772019185,6.792,147.23,147.22,2.0001]
[1740772019503,0.03,147.23,147.22,2.0001]
[1740772019705,0.03,147.23,147.22,48.5855868]
[1740772020501,0.03,147.23,147.22,50.1230868]
[1740772021100,0.03,147.23,147.22,48.5855868]
[1740772025814,0.03,147.23,147.22,2.0001]
[1740772026111,0.03,147.23,147.22,0.0001]
[1740772026415,20.17216157,147.23,147.22,0.0001]
[1740772027715,26.96416157,147.23,147.22,0.0001]
[1740772028905,6.96416157,147.23,147.22,0.0001]
[1740772029108,6.822,147.23,147.22,2.0001]
[1740772029800,0.03,147.23,147.22,2.0001]
[1740772030717,0.03,147.23,147.22,0.0001]
[1740772030914,1.12792401,147.23,147.22,0.0001]
[1740772031828,27.91992401,147.23,147.22,0.0001]
[1740772032496,29.43092401,147.23,147.22,0.0001]
[1740772033517,29.43092401,147.23,147.14,2.0]
[1740772033704,6.7948,147.17,147.1,2.0]
[1740772033902,0.14216157,147.13,147.1,2.0]
[1740772034099,20.14216157,147.13,147.09,48.5854868]
[1740772034303,20.14216157,147.13,147.08,2.0]
[1740772034498,0.14216157,147.11,147.07,46.6484868]
[1740772034803,0.14216157,147.11,147.07,0.063]
[1740772034804,0.14216157,147.09,147.07,0.063]
[1740772035001,0.14216157,147.09,147.07,2.063]
[1740772035607,6.58,147.1,147.09,2.0]
[1740772035918,6.72216157,147.1,147.09,2.0]
[1740772036121,0.14216157,147.09,147.07,0.063]
[1740772037409,0.14216157,147.09,147.07,2.063]
[1740772037613,0.14216157,147.09,147.07,0.063]
[1740772038207,0.14216157,147.09,147.07,2.063]
[1740772039413,0.14216157,147.09,147.07,0.063]
[1740772040006,0.14216157,147.09,147.07,2.063]
[1740772040208,0.14216157,147.09,147.08,2.0]
[1740772040410,6.58,147.1,147.09,2.0]
[1740772040602,6.72216157,147.1,147.08,2.0]
[1740772040916,6.72216157,147.14,147.09,2.0]
[1740772041129,6.58,147.14,147.12,2.0]
[1740772041421,0.14216157,147.13,147.12,2.0]
[1740772042125,0.14216157,147.14,147.12,2.0]
[1740772044224,0.14216157,147.12,147.07,46.6484868]
[1740772044414,0.14216157,147.12,147.07,48.6484868]
[1740772044823,20.0,147.11,147.07,2.063]
[1740772045023,6.72216157,147.1,147.07,0.063]
[1740772045224,20.14216157,147.08,147.07,0.063]
[1740772045945,0.14216157,147.08,147.07,0.063]
[1740772046234,6.94116157,147.08,147.07,0.063]
[1740772047815,8.94116157,147.08,147.07,0.0001]
[1740772048014,8.94116157,147.08,147.06,0.0001]
[1740772048220,29.89732401,147.07,147.06,0.0001]
[1740772050227,28.94346157,147.03,147.02,0.0001]
[1740772050420,151.03922401,147.03,147.02,0.0001]
[1740772050732,152.67212401,147.03,147.02,0.0001]
[1740772051729,2.14216157,146.99,146.98,0.0001]
[1740772051916,3.09792401,146.99,146.98,0.0001]
[1740772052329,9.90102401,146.99,146.98,0.0001]
[1740772053547,22.14216157,146.97,146.96,0.0001]
[1740772053735,20.14216157,146.95,146.94,0.063]
[1740772053918,101.79792401,146.95,146.94,0.063]
[1740772054236,103.79792401,146.95,146.94,0.0001]
[1740772054438,110.60292401,146.95,146.94,0.0001]
[1740772055927,110.60292401,146.95,146.91,0.0001]
[1740772055928,22.14216157,146.92,146.91,0.0001]
[1740772056124,144.29792401,146.92,146.91,0.0001]
[1740772056536,151.10432401,146.92,146.91,0.0001]
[1740772057416,2.14216157,146.9,146.87,0.063]
[1740772057635,0.14216157,146.88,146.87,0.063]
[1740772058536,6.95036157,146.88,146.87,0.063]
[1740772062052,87.65036157,146.88,146.87,0.063]
[1740772067143,104.67096157,146.88,146.84,2.0]
[1740772067348,0.14216157,146.86,146.84,2.0]
[1740772068467,6.8096,146.85,146.84,2.0]
[1740772068763,6.8092,146.86,146.85,2.0]
[1740772068970,0.14216157,146.86,146.85,2.0]
[1740772071331,6.95136157,146.86,146.85,2.0]
[1740772071536,0.14216157,146.86,146.85,2.0]
[1740772072149,6.95136157,146.86,146.85,2.0]
[1740772073960,0.14216157,146.85,146.84,2.0]
[1740772074743,6.95176157,146.85,146.84,2.0]
[1740772076662,6.95146157,146.86,146.85,2.0]
[1740772077268,0.14216157,146.86,146.85,2.0]
[1740772077572,0.14216157,146.86,146.85,2.03]
[1740772080472,121.5474,146.9,146.87,2.0]
[1740772080656,121.32,146.9,146.89,2.0]
[1740772080970,128.26946157,146.9,146.89,2.0]
[1740772081272,0.14216157,146.89,146.88,2.0]
[1740772081475,0.14216157,146.89,146.87,2.0]
[1740772081769,6.94996157,146.89,146.88,2.0]
[1740772081960,0.14216157,146.89,146.88,2.0]
[1740772082348,121.32,146.9,146.89,2.0]
[1740772082349,114.74,146.9,146.89,2.0]
[1740772082873,6.58,146.96,146.95,2.0]
[1740772084048,114.74,146.98,146.95,8.565]
[1740772084769,114.74,146.98,146.96,2.0]
[1740772084968,0.14216157,146.97,146.96,2.0]
[1740772085273,114.74,146.98,146.96,2.0]
[1740772085459,121.68576157,146.98,146.97,2.0]
[1740772087556,0.14216157,146.97,146.96,2.0]
[1740772088174,0.14216157,146.97,146.94,2.0]
[1740772088477,6.8045,146.96,146.94,2.0]
[1740772088863,0.14216157,146.96,146.95,2.0]
[1740772089682,121.68586157,146.98,146.97,2.0]
[1740772089981,0.20516157,146.97,146.96,2.0]
[1740772090879,0.063,146.97,146.96,2.0]
[1740772092194,6.8671,146.97,146.96,2.0]
[1740772092393,0.063,146.97,146.96,2.0]
[1740772093192,0.063,146.97,146.96,48.5854868]
[1740772093400,0.063,146.97,146.96,201.3498868]
[1740772094293,0.063,146.97,146.96,194.5453868]
[1740772094594,0.063,146.97,146.96,56.5453868]
[1740772094978,0.063,146.97,146.96,63.3498868]
[1740772095381,0.063,146.97,146.96,56.5453868]
[1740772096187,0.063,146.97,146.96,196.5453868]
[1740772096393,0.063,146.97,146.96,198.5453868]
[1740772096697,0.063,146.97,146.96,205.3498868]
[1740772096898,0.063,147.03,147.02,2.0]
[1740772097088,0.063,147.03,147.02,194.7151868]
[1740772099388,0.063,147.03,147.02,193.0998868]
[1740772100698,0.063,147.03,147.02,55.0998868]
[1740772100906,0.063,147.03,147.02,48.5854868]
[1740772102191,0.063,147.03,147.02,186.5854868]
[1740772102900,0.063,147.03,147.02,193.3871868]
[1740772105800,6.7968,147.13,147.11,2.0]
[1740772106311,6.7963,147.14,147.11,2.0]
[1740772106692,6.58,147.15,147.11,2.0]
[1740772106693,0.14216157,147.13,147.11,2.0]
[1740772106892,6.93886157,147.13,147.11,2.0]
[1740772107090,114.62,147.16,147.11,48.5854868]
[1740772107292,6.93836157,147.14,147.11,48.5854868]
[1740772107810,6.58,147.15,147.11,48.5854868]
[1740772108108,13.3759,147.15,147.11,48.5854868]
[1740772108309,13.3759,147.15,147.11,186.5854868]
[1740772108502,114.62,147.16,147.11,186.5854868]
[1740772110301,121.4154,147.16,147.11,186.5854868]
[1740772111793,0.14216157,147.15,147.11,186.5854868]
[1740772112601,0.14216157,147.15,147.11,48.5854868]
[1740772113114,6.7962,147.14,147.11,48.5854868]
[1740772119017,0.14216157,147.13,147.11,48.5854868]
[1740772119229,6.8601,147.12,147.11,48.5854868]
[1740772119727,6.8601,147.12,147.11,46.5854868]
[1740772119932,6.8601,147.12,147.11,48.5854868]
[1740772120228,0.14216157,147.11,147.09,2.0]
[1740772120402,6.70216157,147.11,147.09,2.0]
[1740772121315,6.70216157,147.11,147.1,2.0]
[1740772121499,13.49976157,147.11,147.1,2.0]
[1740772121699,13.49976157,147.11,147.09,2.0]
[1740772122111,13.49976157,147.11,147.1,2.0]
[1740772122310,13.49976157,147.11,147.09,2.0]
[1740772122604,30.49376157,147.11,147.08,2.0]
[1740772122906,30.49376157,147.11,147.06,48.5854868]
[1740772123304,30.49376157,147.11,147.07,2.0]
[1740772123514,30.49376157,147.11,147.06,48.5854868]
[1740772124020,30.49376157,147.11,147.07,2.0]
[1740772124214,30.49376157,147.11,147.09,2.0]
[1740772124622,30.49376157,147.11,147.08,2.0]
[1740772124817,13.49976157,147.11,147.09,2.0]
[1740772125120,13.49976157,147.11,147.1,2.0]
[1740772125318,6.8604,147.12,147.11,2.0]
[1740772125616,0.063,147.12,147.11,48.5854868]
[1740772127129,0.20516157,147.12,147.1,2.0]
[1740772127628,0.20516157,147.12,147.11,2.0]
[1740772127806,7.00226157,147.12,147.11,2.0]
[1740772130824,7.00226157,147.12,147.1,2.0]
[1740772131017,7.00226157,147.12,147.11,2.0]
[1740772131219,7.00226157,147.12,147.1,2.0]
[1740772131611,7.00226157,147.12,147.11,2.0]
[1740772132514,7.00226157,147.12,147.1,2.0]
[1740772132904,7.00226157,147.12,147.11,2.0]
[1740772133233,7.00226157,147.12,147.09,2.0]
[1740772133234,23.99516157,147.12,147.09,2.0]
[1740772133721,23.99516157,147.12,147.07,2.0]
[1740772133924,23.99516157,147.12,147.07,48.5854868]
[1740772134419,23.99516157,147.12,147.08,2.0]
[1740772134620,23.99516157,147.12,147.07,48.5854868]
[1740772134925,57.98096157,147.12,147.07,48.5854868]
[1740772137840,20.0,147.09,147.07,48.5854868]
[1740772138020,0.14216157,147.08,147.07,46.5854868]
[1740772138216,26.56,147.09,147.08,2.0]
[1740772139141,33.3585,147.09,147.08,2.0]
[1740772140220,13.3585,147.09,147.08,2.0]
[1740772140831,13.3585,147.09,147.07,48.5854868]
[1740772141028,0.14216157,147.08,147.07,48.5854868]
[1740772141956,13.3585,147.09,147.07,48.5854868]
[1740772142168,13.50066157,147.09,147.08,2.0]
[1740772142453,13.50066157,147.09,147.07,48.5854868]
[1740772142642,13.50066157,147.09,147.08,2.0]
[1740772144046,13.50066157,147.09,147.07,48.5854868]
[1740772144355,0.14216157,147.08,147.07,46.5854868]
[1740772144652,0.14216157,147.08,147.05,2.0]
[1740772144942,0.14216157,147.08,147.04,2.0]
[1740772145244,6.94256157,147.05,147.04,2.0]
[1740772146441,6.94256157,147.05,147.03,0.03]
[1740772146746,6.70216157,147.04,147.03,0.03]
[1740772148643,13.50296157,147.04,147.03,0.03]
[1740772150648,13.50296157,147.04,146.96,0.03]
[1740772150844,13.50296157,147.04,146.95,6.8049]
[1740772150845,20.0,146.93,146.88,0.03]
[1740772151049,0.14216157,146.91,146.88,0.03]
[1740772151227,0.95576244,146.9,146.88,0.03]
[1740772151624,20.14216157,146.89,146.88,0.03]
[1740772152549,20.14216157,146.89,146.85,0.03]
[1740772152853,27.90612401,146.88,146.85,0.03]
[1740772153843,26.95036157,146.88,146.85,0.03]
[1740772154641,0.14216157,146.87,146.85,0.03]
[1740772154851,6.8092,146.86,146.85,0.03]
[1740772157435,6.95136157,146.86,146.85,0.03]
[1740772158553,6.95136157,146.86,146.85,0.0001]
[1740772161435,6.8092,146.86,146.85,0.0001]
[1740772162268,6.95136157,146.86,146.85,0.0001]
[1740772172162,89.65136157,146.86,146.85,0.0001]
[1740772172362,87.65136157,146.86,146.85,0.0001]
[1740772172566,89.65136157,146.86,146.85,0.0001]
[1740772176374,87.65136157,146.86,146.85,0.0001]
[1740772176878,6.95136157,146.86,146.81,0.03]
[1740772177081,6.56,146.85,146.81,0.03]
[1740772177267,0.14216157,146.84,146.81,0.03]
[1740772177576,6.8105,146.83,146.81,0.03]
[1740772181566,0.14216157,146.82,146.81,0.03]
[1740772183164,6.95266157,146.83,146.81,0.03]
[1740772183864,7.90842401,146.83,146.81,0.03]
[1740772184185,7.90842401,146.83,146.81,0.0001]
[1740772184560,80.84216157,146.82,146.81,0.0001]
[1740772185181,89.65316157,146.82,146.81,0.0001]
[1740772185479,91.65316157,146.82,146.81,0.0001]
[1740772186373,10.95316157,146.82,146.81,0.0001]
[1740772186581,12.54466157,146.82,146.81,0.0001]
[1740772186782,6.811,146.82,146.81,0.0001]
[1740772187281,6.95316157,146.82,146.81,0.0001]
[1740772187588,13.51316157,146.82,146.81,0.0001]
[1740772188079,33.51316157,146.82,146.81,0.0001]
[1740772190176,13.51316157,146.82,146.81,0.0001]
[1740772190786,96.21316157,146.82,146.81,0.0001]
[1740772190972,98.21316157,146.82,146.81,0.0001]
[1740772191758,24.14216157,146.78,146.72,0.03]
[1740772192074,2.14216157,146.76,146.72,0.03]
[1740772192284,6.95686157,146.74,146.72,0.03]
[1740772192488,1.09792401,146.73,146.72,0.03]
[1740772193359,7.91312401,146.73,146.72,0.03]
[1740772194375,7.91312401,146.73,146.72,0.0001]
[1740772194567,15.45354815,146.73,146.72,0.0001]
[1740772195169,13.45354815,146.73,146.72,0.0001]
[1740772195393,15.45354815,146.73,146.72,0.0001]
[1740772195780,20.14216157,146.71,146.7,0.0001]
[1740772196082,6.70216157,146.71,146.7,0.0001]
[1740772196594,13.51826157,146.71,146.7,0.0001]
[1740772201023,13.3761,146.71,146.7,0.0001]
[1740772201511,13.51826157,146.71,146.7,0.0001]
[1740772201809,33.3761,146.71,146.7,0.0001]
[1740772201993,33.51826157,146.71,146.7,0.0001]
[1740772202502,6.8147,146.74,146.7,0.0001]
[1740772202811,6.56,146.73,146.7,46.5855868]
[1740772203301,6.8138,146.76,146.7,46.5855868]
[1740772203502,23.8484,146.76,146.7,46.5855868]
[1740772203682,0.14216157,146.75,146.7,46.5855868]
[1740772204082,23.8484,146.76,146.7,46.5855868]
[1740772204305,0.14216157,146.75,146.7,46.5855868]
[1740772204478,23.8484,146.76,146.7,46.5855868]
[1740772204686,0.14216157,146.75,146.7,46.5855868]
[1740772205220,5.8175047,146.82,146.71,11.797]
[1740772205519,5.8175047,146.82,146.71,192.3824868]
[1740772205520,0.14216157,146.8,146.71,192.3824868]
[1740772205715,23.8403,146.81,146.71,192.3824868]
[1740772206205,6.8115,146.81,146.71,196.3824868]
[1740772206509,0.14216157,146.8,146.71,196.3824868]
[1740772206707,6.623,146.82,146.73,2.0]
[1740772206898,0.063,146.75,146.73,2.0]
[1740772207092,0.063,146.75,146.73,186.5854868]
[1740772207294,0.063,146.75,146.73,195.4006868]
[1740772207708,0.063,146.75,146.73,184.5854868]
[1740772210021,0.063,146.75,146.73,191.4006868]
[1740772210704,0.063,146.75,146.73,184.5854868]
[1740772211594,0.063,146.75,146.73,191.4006868]
[1740772213220,0.063,146.75,146.73,184.5854868]
[1740772213719,0.063,146.75,146.73,53.4005868]
[1740772215008,0.063,146.75,146.73,46.5854868]
[1740772216711,0.063,146.75,146.71,54.3824868]
[1740772216907,0.20516157,146.75,146.71,54.3824868]
[1740772217431,0.20516157,146.75,146.71,52.7769868]
[1740772218147,0.20516157,146.75,146.71,46.5854868]
[1740772219145,6.8147,146.74,146.71,46.5854868]
[1740772219438,6.8147,146.74,146.7,0.0001]
[1740772219733,23.8516,146.74,146.7,0.0001]
[1740772220225,6.8147,146.74,146.7,0.0001]
[1740772220548,0.14216157,146.73,146.7,0.0001]
[1740772221008,6.95686157,146.74,146.7,0.0001]
[1740772221334,23.99376157,146.74,146.7,0.0001]
[1740772221519,6.95686157,146.74,146.7,0.0001]
[1740772223012,23.99376157,146.74,146.7,0.0001]
[1740772223921,6.95686157,146.74,146.7,0.0001]
[1740772224611,23.99376157,146.74,146.7,0.0001]
[1740772227107,24.94952401,146.74,146.7,0.0001]
[1740772227310,20.0,146.71,146.7,0.0001]
[1740772227514,26.70216157,146.71,146.7,0.0001]
[1740772228417,33.51826157,146.71,146.7,0.0001]
[1740772229019,13.3761,146.71,146.7,0.0001]
[1740772229215,6.56,146.71,146.7,0.0001]
[1740772229830,80.763,146.75,146.7,46.5855868]
[1740772229831,6.8147,146.74,146.7,46.5855868]
[1740772230032,0.063,146.75,146.7,191.0490868]
[1740772230247,6.8774,146.75,146.7,191.0490868]
[1740772230447,0.063,146.75,146.7,197.8655868]
[1740772230935,0.063,146.75,146.7,201.8655868]
[1740772231137,0.063,146.75,146.74,20.0]
[1740772231353,0.063,146.75,146.74,204.5854868]
[1740772232646,0.063,146.75,146.74,211.4001868]
[1740772232951,0.063,146.75,146.74,223.5012868]
[1740772234343,0.063,146.82,146.77,2.0]
[1740772234519,0.063,146.82,146.78,4.0]
[1740772234723,0.063,146.82,146.79,4.0]
[1740772235520,0.063,146.82,146.78,186.5854868]
[1740772236235,0.063,146.82,146.78,184.5854868]
[1740772236441,0.063,146.82,146.78,46.5854868]
[1740772237418,0.063,146.82,146.78,48.5854868]
[1740772237935,0.063,146.82,146.78,46.5854868]
[1740772239240,0.063,146.82,146.78,48.5854868]
[1740772239435,0.063,146.82,146.8,2.0]
[1740772239641,0.063,146.82,146.8,186.5854868]
[1740772240440,0.063,146.82,146.8,184.5854868]
[1740772242035,0.063,146.82,146.8,191.3973868]
[1740772242536,0.063,146.82,146.81,13.37249374]